[Event "Titled Tuesday Blitz August 08 Early 2023"]
[White "Lazavik, Denis"]
[Black "Kazakouski, Valery"]
[WhiteFideId "13515110"]
[BlackFideId "13507443"]
[WhiteElo "3043"]
[BlackElo "2900"]
[Result "1-0"]
[Round "6"]
[TimeControl "180+1"]
[Date "2023.08.08"]
[WhiteClock "0:00:06"]
[BlackClock "0:00:00"]
[Board "6"]

1. d4 {[%clk 0:03:00]}  Nf6 {[%clk 0:02:57]} 2. c4 {[%clk 0:03:01]}  e6 {[%clk 0:02:57]} 3. Nc3 {[%clk 0:03:01]}  Bb4 {[%clk 0:02:57]} 4. e3 {[%clk 0:03:01]}  b6 {[%clk 0:02:55]} 5. Ne2 {[%clk 0:02:59]}  Ba6 {[%clk 0:02:55]} 6. a3 {[%clk 0:02:59]}  Bxc3+ {[%clk 0:02:55]} 7. Nxc3 {[%clk 0:03:00]}  d5 {[%clk 0:02:56]} 8. b3 {[%clk 0:02:58]}  O-O {[%clk 0:02:56]} 9. Be2 {[%clk 0:02:57]}  dxc4 {[%clk 0:02:53]} 10. bxc4 {[%clk 0:02:58]}  Nc6 {[%clk 0:02:53]} 11. O-O {[%clk 0:02:57]}  Na5 {[%clk 0:02:53]} 12. Qa4 {[%clk 0:02:57]}  Qd7 {[%clk 0:02:52]} 13. Nb5 {[%clk 0:02:53]}  c6 {[%clk 0:02:40]} 14. Nc3 {[%clk 0:02:53]}  c5 {[%clk 0:02:41]} 15. dxc5 {[%clk 0:02:43]}  Qxa4 {[%clk 0:02:20]} 16. Nxa4 {[%clk 0:02:42]}  Bxc4 {[%clk 0:02:19]} 17. Bxc4 {[%clk 0:02:27]}  Nxc4 {[%clk 0:02:20]} 18. cxb6 {[%clk 0:02:28]}  axb6 {[%clk 0:02:20]} 19. Nc3 {[%clk 0:02:28]}  Rfc8 {[%clk 0:02:20]} 20. a4 {[%clk 0:02:16]}  Nd7 {[%clk 0:02:06]} 21. Rd1 {[%clk 0:02:00]}  Nc5 {[%clk 0:02:04]} 22. Kf1 {[%clk 0:00:58]}  h5 {[%clk 0:01:03]} 23. Ke2 {[%clk 0:00:51]}  Nb3 {[%clk 0:01:02]} 24. Rb1 {[%clk 0:00:33]}  Nca5 {[%clk 0:01:02]} 25. Bb2 {[%clk 0:00:31]}  Rc4 {[%clk 0:01:03]} 26. Rd6 {[%clk 0:00:22]}  Rac8 {[%clk 0:00:56]} 27. Rxb6 {[%clk 0:00:22]}  Rxc3 {[%clk 0:00:56]} 28. Bxc3 {[%clk 0:00:23]}  Rxc3 {[%clk 0:00:57]} 29. Rb2 {[%clk 0:00:21]}  Nc5 {[%clk 0:00:49]} 30. R2b5 {[%clk 0:00:16]}  Nab3 {[%clk 0:00:49]} 31. a5 {[%clk 0:00:14]}  Rc2+ {[%clk 0:00:40]} 32. Kd1 {[%clk 0:00:13]}  Rd2+ {[%clk 0:00:38]} 33. Ke1 {[%clk 0:00:11]}  Nd3+ {[%clk 0:00:39]} 34. Kf1 {[%clk 0:00:12]}  Rxf2+ {[%clk 0:00:36]} 35. Kg1 {[%clk 0:00:12]}  Nbc1 {[%clk 0:00:31]} 36. h4 {[%clk 0:00:07]}  g6 {[%clk 0:00:24]} 37. a6 {[%clk 0:00:07]}  Ra2 {[%clk 0:00:19]} 38. Rd6 {[%clk 0:00:05]}  Ne2+ {[%clk 0:00:16]} 39. Kh2 {[%clk 0:00:06]}  Ne1 {[%clk 0:00:15]} 40. Rb7 {[%clk 0:00:06]}  Nc3 {[%clk 0:00:07]} 41. Rd8+ {[%clk 0:00:05]}  Kg7 {[%clk 0:00:07]} 42. Rdd7 {[%clk 0:00:06]}  Rxg2+ {[%clk 0:00:06]} 43. Kh1 {[%clk 0:00:06]}  Rf2 {[%clk 0:00:06]} 44. a7 {[%clk 0:00:04]}  Ne2 {[%clk 0:00:04]} 45. Rxf7+ {[%clk 0:00:04]}  Rxf7 {[%clk 0:00:02]} 46. Rxf7+ {[%clk 0:00:05]}  Kxf7 {[%clk 0:00:03]} 47. a8=Q {[%clk 0:00:06]}  Ng3+ {[%clk 0:00:02]} 48. Kh2 {[%clk 0:00:06]}  Nf5 {[%clk 0:00:00]} 49. e4 {[%clk 0:00:06]} 1-0


[Site "https://www.chess.com"]

[Event "Titled Tuesday Blitz August 08 Early 2023"]
[White "Matlakov, Maxim"]
[Black "Galchenko, Matvey"]
[WhiteFideId "4168003"]
[BlackFideId "24175480"]
[WhiteElo "2993"]
[BlackElo "2887"]
[Result "1-0"]
[Round "6"]
[TimeControl "180+1"]
[Date "2023.08.08"]
[WhiteClock "0:00:08"]
[BlackClock "0:00:00"]
[Board "7"]

1. d4 {[%clk 0:03:00]}  Nf6 {[%clk 0:02:55]} 2. Nf3 {[%clk 0:03:00]}  c5 {[%clk 0:02:55]} 3. d5 {[%clk 0:03:01]}  b5 {[%clk 0:02:55]} 4. e4 {[%clk 0:02:58]}  Nxe4 {[%clk 0:02:55]} 5. Bd3 {[%clk 0:02:57]}  Nf6 {[%clk 0:02:55]} 6. Bxb5 {[%clk 0:02:49]}  g6 {[%clk 0:02:54]} 7. O-O {[%clk 0:02:48]}  Bg7 {[%clk 0:02:55]} 8. Re1 {[%clk 0:02:49]}  O-O {[%clk 0:02:55]} 9. c4 {[%clk 0:02:46]}  e6 {[%clk 0:02:50]} 10. Nc3 {[%clk 0:02:45]}  exd5 {[%clk 0:02:50]} 11. Nxd5 {[%clk 0:02:43]}  a6 {[%clk 0:02:36]} 12. Ba4 {[%clk 0:02:35]}  Bb7 {[%clk 0:02:21]} 13. Bg5 {[%clk 0:02:12]}  Bxd5 {[%clk 0:02:12]} 14. cxd5 {[%clk 0:02:04]}  h6 {[%clk 0:02:00]} 15. Bh4 {[%clk 0:02:02]}  d6 {[%clk 0:01:58]} 16. Nd2 {[%clk 0:02:00]}  Nbd7 {[%clk 0:01:48]} 17. Bxd7 {[%clk 0:01:32]}  Qxd7 {[%clk 0:01:49]} 18. Qf3 {[%clk 0:01:31]}  g5 {[%clk 0:01:04]} 19. Bg3 {[%clk 0:01:30]}  Qb7 {[%clk 0:00:53]} 20. Bxd6 {[%clk 0:01:18]}  Rfd8 {[%clk 0:00:53]} 21. Be7 {[%clk 0:01:08]}  g4 {[%clk 0:00:28]} 22. Qe2 {[%clk 0:00:48]}  Rxd5 {[%clk 0:00:26]} 23. Bxf6 {[%clk 0:00:46]}  Bxf6 {[%clk 0:00:27]} 24. Ne4 {[%clk 0:00:42]}  Qxb2 {[%clk 0:00:19]} 25. Qxg4+ {[%clk 0:00:38]}  Bg7 {[%clk 0:00:18]} 26. Rab1 {[%clk 0:00:36]}  h5 {[%clk 0:00:07]} 27. Qf3 {[%clk 0:00:33]}  Qxa2 {[%clk 0:00:04]} 28. Rbd1 {[%clk 0:00:16]}  Rad8 {[%clk 0:00:02]} 29. Rc1 {[%clk 0:00:08]}  a5 {[%clk 0:00:02]} 30. h4 {[%clk 0:00:08]}  a4 {[%clk 0:00:00]} 31. Ng5 {[%clk 0:00:08]} 1-0


[Site "https://www.chess.com"]

[Event "Titled Tuesday Blitz August 08 Early 2023"]
[White "Isanzhulov, Arystan"]
[Black "Le, Tuan Minh"]
[WhiteFideId "13711644"]
[BlackFideId "12401153"]
[WhiteElo "2876"]
[BlackElo "2971"]
[Result "0-1"]
[Round "6"]
[TimeControl "180+1"]
[Date "2023.08.08"]
[WhiteClock "0:00:17"]
[BlackClock "0:01:11"]
[Board "8"]

1. e4 {[%clk 0:03:00]}  e5 {[%clk 0:02:55]} 2. Nf3 {[%clk 0:03:00]}  Nc6 {[%clk 0:02:55]} 3. Nc3 {[%clk 0:03:01]}  Nf6 {[%clk 0:02:54]} 4. d4 {[%clk 0:03:02]}  exd4 {[%clk 0:02:55]} 5. Nxd4 {[%clk 0:03:03]}  Bc5 {[%clk 0:02:38]} 6. Be3 {[%clk 0:03:03]}  Bb6 {[%clk 0:02:38]} 7. Qd2 {[%clk 0:02:40]}  d6 {[%clk 0:02:36]} 8. f3 {[%clk 0:02:37]}  O-O {[%clk 0:02:33]} 9. O-O-O {[%clk 0:02:37]}  Nxd4 {[%clk 0:02:26]} 10. Bxd4 {[%clk 0:02:37]}  Be6 {[%clk 0:02:27]} 11. g4 {[%clk 0:02:36]}  Nd7 {[%clk 0:02:27]} 12. h4 {[%clk 0:02:32]}  Ne5 {[%clk 0:02:24]} 13. Be2 {[%clk 0:02:31]}  Nc6 {[%clk 0:02:12]} 14. Be3 {[%clk 0:02:26]}  Re8 {[%clk 0:02:09]} 15. f4 {[%clk 0:02:24]}  Ba5 {[%clk 0:01:47]} 16. g5 {[%clk 0:02:21]}  Bxa2 {[%clk 0:01:39]} 17. Qd3 {[%clk 0:02:08]}  Bxc3 {[%clk 0:01:35]} 18. Qxc3 {[%clk 0:02:08]}  Rxe4 {[%clk 0:01:34]} 19. Bf3 {[%clk 0:02:02]}  Rc4 {[%clk 0:01:29]} 20. Qa3 {[%clk 0:02:02]}  Nb4 {[%clk 0:01:30]} 21. c3 {[%clk 0:02:03]}  a5 {[%clk 0:01:31]} 22. Rhe1 {[%clk 0:01:46]}  c5 {[%clk 0:01:23]} 23. Be2 {[%clk 0:01:44]}  Re4 {[%clk 0:01:20]} 24. cxb4 {[%clk 0:01:30]}  axb4 {[%clk 0:01:21]} 25. Rxd6 {[%clk 0:01:24]}  bxa3 {[%clk 0:01:14]} 26. Rxd8+ {[%clk 0:01:20]}  Rxd8 {[%clk 0:01:15]} 27. Bf1 {[%clk 0:01:07]}  Rde8 {[%clk 0:01:11]} 28. Kd2 {[%clk 0:00:57]}  Rxe3 {[%clk 0:01:09]} 29. Rxe3 {[%clk 0:00:52]}  Rxe3 {[%clk 0:01:10]} 30. Kxe3 {[%clk 0:00:17]}  axb2 {[%clk 0:01:11]} 0-1


[Site "https://www.chess.com"]

[Event "Titled Tuesday Blitz August 08 Early 2023"]
[White "Fantastic_Power"]
[Black "Carlsen, Magnus"]
[BlackFideId "1503014"]
[WhiteElo "2810"]
[BlackElo "3243"]
[Result "0-1"]
[Round "6"]
[TimeControl "180+1"]
[Date "2023.08.08"]
[WhiteClock "0:00:13"]
[BlackClock "0:02:02"]
[Board "10"]

1. e4 {[%clk 0:02:55]}  d5 {[%clk 0:03:00]} 2. exd5 {[%clk 0:02:54]}  Nf6 {[%clk 0:03:01]} 3. Nf3 {[%clk 0:02:53]}  Qxd5 {[%clk 0:03:00]} 4. d4 {[%clk 0:02:53]}  Bg4 {[%clk 0:02:58]} 5. Nc3 {[%clk 0:02:49]}  Qa5 {[%clk 0:02:50]} 6. h3 {[%clk 0:02:45]}  Bh5 {[%clk 0:02:50]} 7. Bd2 {[%clk 0:02:22]}  c6 {[%clk 0:02:45]} 8. Bc4 {[%clk 0:02:20]}  e6 {[%clk 0:02:44]} 9. O-O {[%clk 0:02:18]}  Nbd7 {[%clk 0:02:44]} 10. Qe2 {[%clk 0:02:13]}  Qc7 {[%clk 0:02:42]} 11. Rfe1 {[%clk 0:02:10]}  Bd6 {[%clk 0:02:40]} 12. Bd3 {[%clk 0:02:02]}  O-O-O {[%clk 0:02:39]} 13. a4 {[%clk 0:01:59]}  Bh2+ {[%clk 0:02:39]} 14. Kh1 {[%clk 0:01:58]}  Bf4 {[%clk 0:02:40]} 15. Be3 {[%clk 0:01:46]}  Nd5 {[%clk 0:02:37]} 16. Nxd5 {[%clk 0:01:45]}  exd5 {[%clk 0:02:38]} 17. g4 {[%clk 0:01:43]}  Bg6 {[%clk 0:02:38]} 18. Qd2 {[%clk 0:01:43]}  Bd6 {[%clk 0:02:36]} 19. Kg2 {[%clk 0:01:39]}  Nf6 {[%clk 0:02:36]} 20. Ne5 {[%clk 0:01:17]}  Ne4 {[%clk 0:02:31]} 21. Bxe4 {[%clk 0:01:16]}  dxe4 {[%clk 0:02:26]} 22. Qc3 {[%clk 0:01:03]}  f6 {[%clk 0:02:23]} 23. Nxg6 {[%clk 0:01:01]}  hxg6 {[%clk 0:02:24]} 24. Qc4 {[%clk 0:00:59]}  Kb8 {[%clk 0:02:21]} 25. a5 {[%clk 0:00:57]}  a6 {[%clk 0:02:20]} 26. c3 {[%clk 0:00:43]}  f5 {[%clk 0:02:20]} 27. d5 {[%clk 0:00:33]}  c5 {[%clk 0:02:06]} 28. b4 {[%clk 0:00:24]}  f4 {[%clk 0:02:05]} 29. Bxc5 {[%clk 0:00:23]}  f3+ {[%clk 0:02:05]} 30. Kg1 {[%clk 0:00:23]}  Rxh3 {[%clk 0:02:05]} 31. Qxe4 {[%clk 0:00:13]}  Bxc5 {[%clk 0:02:02]} 0-1


[Site "https://www.chess.com"]

[Event "Titled Tuesday Blitz August 08 Early 2023"]
[White "Materia, Marco"]
[Black "Sarana, Alexey"]
[WhiteFideId "45150451"]
[BlackFideId "24133795"]
[WhiteElo "2746"]
[BlackElo "3084"]
[Result "0-1"]
[Round "6"]
[TimeControl "180+1"]
[Date "2023.08.08"]
[WhiteClock "0:00:00"]
[BlackClock "0:00:07"]
[Board "11"]

1. d4 {[%clk 0:03:00]}  Nf6 {[%clk 0:03:00]} 2. c4 {[%clk 0:03:01]}  e6 {[%clk 0:03:00]} 3. Nf3 {[%clk 0:03:02]}  d5 {[%clk 0:03:00]} 4. Nc3 {[%clk 0:03:02]}  c6 {[%clk 0:02:59]} 5. Bg5 {[%clk 0:03:01]}  h6 {[%clk 0:02:57]} 6. Bxf6 {[%clk 0:03:01]}  Qxf6 {[%clk 0:02:57]} 7. e3 {[%clk 0:03:02]}  Nd7 {[%clk 0:02:54]} 8. Bd3 {[%clk 0:03:02]}  dxc4 {[%clk 0:02:54]} 9. Bxc4 {[%clk 0:03:02]}  Bd6 {[%clk 0:02:54]} 10. O-O {[%clk 0:03:00]}  Bc7 {[%clk 0:02:53]} 11. e4 {[%clk 0:02:54]}  e5 {[%clk 0:02:53]} 12. d5 {[%clk 0:02:55]}  Nb6 {[%clk 0:02:53]} 13. Bb3 {[%clk 0:02:54]}  Bg4 {[%clk 0:02:51]} 14. h3 {[%clk 0:02:51]}  Bh5 {[%clk 0:02:51]} 15. Rc1 {[%clk 0:02:48]}  Rd8 {[%clk 0:02:49]} 16. Qe2 {[%clk 0:02:39]}  O-O {[%clk 0:02:49]} 17. Rfd1 {[%clk 0:02:38]}  Bd6 {[%clk 0:02:45]} 18. dxc6 {[%clk 0:01:58]}  bxc6 {[%clk 0:02:44]} 19. Qe3 {[%clk 0:01:55]}  Bb4 {[%clk 0:02:21]} 20. Ne2 {[%clk 0:01:53]}  Rxd1+ {[%clk 0:02:14]} 21. Rxd1 {[%clk 0:01:53]}  Rc8 {[%clk 0:02:08]} 22. Ng3 {[%clk 0:01:53]}  Bxf3 {[%clk 0:02:08]} 23. Qxf3 {[%clk 0:01:52]}  Qxf3 {[%clk 0:02:08]} 24. gxf3 {[%clk 0:01:53]}  g6 {[%clk 0:02:09]} 25. Nf1 {[%clk 0:01:49]}  Rc7 {[%clk 0:02:04]} 26. Ne3 {[%clk 0:01:49]}  Kg7 {[%clk 0:01:59]} 27. Kf1 {[%clk 0:01:48]}  Bc5 {[%clk 0:01:59]} 28. Ke2 {[%clk 0:01:49]}  Bd4 {[%clk 0:01:58]} 29. Rd2 {[%clk 0:01:47]}  Kf6 {[%clk 0:01:53]} 30. Ng4+ {[%clk 0:01:39]}  Kg5 {[%clk 0:01:52]} 31. h4+ {[%clk 0:01:30]}  Kh5 {[%clk 0:01:50]} 32. Rd1 {[%clk 0:01:30]}  f5 {[%clk 0:01:41]} 33. Nf6+ {[%clk 0:01:21]}  Kxh4 {[%clk 0:01:41]} 34. Rg1 {[%clk 0:01:22]}  c5 {[%clk 0:01:08]} 35. Rxg6 {[%clk 0:01:13]}  c4 {[%clk 0:01:08]} 36. Bc2 {[%clk 0:01:13]}  f4 {[%clk 0:01:04]} 37. Rg4+ {[%clk 0:00:58]}  Kh3 {[%clk 0:01:04]} 38. Kf1 {[%clk 0:00:57]}  Rc6 {[%clk 0:00:31]} 39. Rg6 {[%clk 0:00:55]}  Kh4 {[%clk 0:00:19]} 40. Rg4+ {[%clk 0:00:51]}  Kh3 {[%clk 0:00:20]} 41. Nh7 {[%clk 0:00:37]}  Rd6 {[%clk 0:00:09]} 42. Rg1 {[%clk 0:00:34]}  Bxf2 {[%clk 0:00:10]} 43. Rg8 {[%clk 0:00:18]}  Be3 {[%clk 0:00:07]} 44. Nf8 {[%clk 0:00:10]}  Rd2 {[%clk 0:00:06]} 45. Bb1 {[%clk 0:00:03]}  Rxb2 {[%clk 0:00:06]} 46. Rg5 {[%clk 0:00:01]}  Rxb1+ {[%clk 0:00:06]} 47. Ke2 {[%clk 0:00:00]}  Rb2+ {[%clk 0:00:07]} 0-1


[Site "https://www.chess.com"]

[Event "Titled Tuesday Blitz August 08 Early 2023"]
[White "Kramnik, Vladimir"]
[Black "Fiorito, Joaquin"]
[WhiteFideId "4101588"]
[BlackFideId "180173"]
[WhiteElo "2991"]
[BlackElo "2740"]
[Result "1-0"]
[Round "6"]
[TimeControl "180+1"]
[Date "2023.08.08"]
[WhiteClock "0:00:56"]
[BlackClock "0:00:38"]
[Board "13"]

1. e4 {[%clk 0:03:00]}  c6 {[%clk 0:03:00]} 2. d4 {[%clk 0:02:59]}  d5 {[%clk 0:03:00]} 3. Nd2 {[%clk 0:02:59]}  dxe4 {[%clk 0:03:01]} 4. Nxe4 {[%clk 0:02:59]}  Nf6 {[%clk 0:03:01]} 5. Nxf6+ {[%clk 0:02:59]}  exf6 {[%clk 0:03:02]} 6. c3 {[%clk 0:03:00]}  Bd6 {[%clk 0:03:02]} 7. Bd3 {[%clk 0:03:00]}  O-O {[%clk 0:03:03]} 8. Ne2 {[%clk 0:03:00]}  Re8 {[%clk 0:03:03]} 9. O-O {[%clk 0:03:01]}  Nd7 {[%clk 0:03:04]} 10. Ng3 {[%clk 0:03:00]}  g6 {[%clk 0:03:01]} 11. Bh6 {[%clk 0:02:56]}  f5 {[%clk 0:02:57]} 12. Qd2 {[%clk 0:02:54]}  Nf6 {[%clk 0:02:55]} 13. Rfe1 {[%clk 0:02:22]}  Ng4 {[%clk 0:01:37]} 14. Bg5 {[%clk 0:02:14]}  Be7 {[%clk 0:01:37]} 15. Rxe7 {[%clk 0:01:47]}  Rxe7 {[%clk 0:01:37]} 16. h3 {[%clk 0:01:46]}  f6 {[%clk 0:01:37]} 17. Bf4 {[%clk 0:01:42]}  g5 {[%clk 0:01:38]} 18. hxg4 {[%clk 0:01:24]}  gxf4 {[%clk 0:01:37]} 19. Qxf4 {[%clk 0:01:16]}  fxg4 {[%clk 0:01:32]} 20. Nh5 {[%clk 0:01:13]}  Be6 {[%clk 0:01:15]} 21. Re1 {[%clk 0:00:57]}  Kh8 {[%clk 0:00:38]} 22. Qxf6+ {[%clk 0:00:56]} 1-0


[Site "https://www.chess.com"]

[Event "Titled Tuesday Blitz August 08 Early 2023"]
[White "Indjic, Aleksandar"]
[Black "Volkov, Maksim"]
[WhiteFideId "911925"]
[BlackFideId "54123070"]
[WhiteElo "2931"]
[BlackElo "2725"]
[Result "1-0"]
[Round "6"]
[TimeControl "180+1"]
[Date "2023.08.08"]
[WhiteClock "0:01:01"]
[BlackClock "0:00:36"]
[Board "15"]

1. e4 {[%clk 0:03:00]}  c5 {[%clk 0:02:59]} 2. Nf3 {[%clk 0:03:01]}  d6 {[%clk 0:02:59]} 3. d4 {[%clk 0:03:01]}  cxd4 {[%clk 0:02:59]} 4. Nxd4 {[%clk 0:03:02]}  Nf6 {[%clk 0:03:00]} 5. Nc3 {[%clk 0:03:03]}  a6 {[%clk 0:03:01]} 6. Bc4 {[%clk 0:03:00]}  e6 {[%clk 0:03:00]} 7. Bb3 {[%clk 0:03:00]}  b5 {[%clk 0:03:00]} 8. a3 {[%clk 0:02:57]}  Be7 {[%clk 0:02:59]} 9. g4 {[%clk 0:02:56]}  Qb6 {[%clk 0:02:46]} 10. g5 {[%clk 0:02:55]}  Nfd7 {[%clk 0:02:46]} 11. Bxe6 {[%clk 0:02:44]}  fxe6 {[%clk 0:02:36]} 12. Nxe6 {[%clk 0:02:43]}  Nc5 {[%clk 0:02:09]} 13. Nd5 {[%clk 0:02:38]}  Qb7 {[%clk 0:02:09]} 14. Nxg7+ {[%clk 0:02:36]}  Kf7 {[%clk 0:02:08]} 15. Nf5 {[%clk 0:02:30]}  Bxf5 {[%clk 0:01:56]} 16. exf5 {[%clk 0:02:31]}  Re8 {[%clk 0:01:52]} 17. O-O {[%clk 0:02:25]}  Nc6 {[%clk 0:01:45]} 18. Qh5+ {[%clk 0:02:13]}  Kg8 {[%clk 0:01:44]} 19. g6 {[%clk 0:02:00]}  Bf8 {[%clk 0:01:38]} 20. Nf6+ {[%clk 0:01:55]}  Kh8 {[%clk 0:01:14]} 21. Nxh7 {[%clk 0:01:49]}  Nd4 {[%clk 0:01:05]} 22. f3 {[%clk 0:01:04]}  Bg7 {[%clk 0:00:36]} 23. Nf6+ {[%clk 0:01:01]} 1-0


[Site "https://www.chess.com"]

[Event "Titled Tuesday Blitz August 08 Early 2023"]
[White "Alekseev, Evgeny"]
[Black "Yanchenko, Roman"]
[WhiteFideId "4138147"]
[BlackFideId "4137329"]
[WhiteElo "2929"]
[BlackElo "2725"]
[Result "1-0"]
[Round "6"]
[TimeControl "180+1"]
[Date "2023.08.08"]
[WhiteClock "0:00:37"]
[BlackClock "0:00:11"]
[Board "16"]

1. e4 {[%clk 0:02:55]}  e6 {[%clk 0:03:00]} 2. d4 {[%clk 0:02:55]}  d5 {[%clk 0:03:01]} 3. Nc3 {[%clk 0:02:54]}  Bb4 {[%clk 0:03:00]} 4. e5 {[%clk 0:02:55]}  Ne7 {[%clk 0:03:01]} 5. a3 {[%clk 0:02:55]}  Bxc3+ {[%clk 0:03:02]} 6. bxc3 {[%clk 0:02:55]}  b6 {[%clk 0:03:02]} 7. Nh3 {[%clk 0:02:54]}  Ba6 {[%clk 0:03:02]} 8. Bxa6 {[%clk 0:02:53]}  Nxa6 {[%clk 0:03:03]} 9. Nf4 {[%clk 0:02:52]}  Nb8 {[%clk 0:03:02]} 10. Nh5 {[%clk 0:02:51]}  Kf8 {[%clk 0:03:02]} 11. O-O {[%clk 0:02:47]}  c5 {[%clk 0:03:01]} 12. f4 {[%clk 0:02:22]}  g6 {[%clk 0:02:28]} 13. Nf6 {[%clk 0:02:21]}  Ng8 {[%clk 0:02:27]} 14. f5 {[%clk 0:02:20]}  gxf5 {[%clk 0:02:02]} 15. Bg5 {[%clk 0:02:20]}  Qc7 {[%clk 0:02:02]} 16. Qh5 {[%clk 0:02:16]}  h6 {[%clk 0:02:00]} 17. Nxd5 {[%clk 0:01:46]}  Qb7 {[%clk 0:01:29]} 18. Nf6 {[%clk 0:01:32]}  cxd4 {[%clk 0:01:28]} 19. cxd4 {[%clk 0:01:30]}  Nd7 {[%clk 0:01:28]} 20. Nxg8 {[%clk 0:01:28]}  Rxg8 {[%clk 0:01:04]} 21. Qxh6+ {[%clk 0:01:28]}  Ke8 {[%clk 0:01:05]} 22. h4 {[%clk 0:01:28]}  Rc8 {[%clk 0:00:59]} 23. Rf2 {[%clk 0:01:27]}  Qe4 {[%clk 0:00:56]} 24. Qh7 {[%clk 0:01:21]}  Rg6 {[%clk 0:00:56]} 25. Rd1 {[%clk 0:01:12]}  Rxc2 {[%clk 0:00:51]} 26. Rxc2 {[%clk 0:01:11]}  Qxc2 {[%clk 0:00:15]} 27. Rc1 {[%clk 0:01:11]}  Nf8 {[%clk 0:00:15]} 28. Qh8 {[%clk 0:00:57]}  Qe4 {[%clk 0:00:13]} 29. Rc8+ {[%clk 0:00:55]}  Kd7 {[%clk 0:00:14]} 30. Qxf8 {[%clk 0:00:46]}  Qxd4+ {[%clk 0:00:14]} 31. Kh1 {[%clk 0:00:41]}  Qa1+ {[%clk 0:00:12]} 32. Kh2 {[%clk 0:00:41]}  Qxe5+ {[%clk 0:00:12]} 33. Kh3 {[%clk 0:00:39]}  Rxg5 {[%clk 0:00:11]} 34. Qd8# {[%clk 0:00:37]} 1-0


[Site "https://www.chess.com"]

[Event "Titled Tuesday Blitz August 08 Early 2023"]
[White "Jones, Gawain C B"]
[Black "Csonka, Balazs"]
[WhiteFideId "409561"]
[BlackFideId "742910"]
[WhiteElo "2904"]
[BlackElo "2717"]
[Result "0-1"]
[Round "6"]
[TimeControl "180+1"]
[Date "2023.08.08"]
[WhiteClock "0:00:04"]
[BlackClock "0:00:09"]
[Board "19"]

1. Nf3 {[%clk 0:03:00]}  Nf6 {[%clk 0:02:59]} 2. c4 {[%clk 0:03:00]}  b6 {[%clk 0:02:59]} 3. b4 {[%clk 0:02:59]}  Bb7 {[%clk 0:02:56]} 4. Bb2 {[%clk 0:02:59]}  e6 {[%clk 0:02:53]} 5. Qb3 {[%clk 0:02:55]}  c5 {[%clk 0:02:50]} 6. bxc5 {[%clk 0:02:54]}  Bxc5 {[%clk 0:02:50]} 7. d4 {[%clk 0:02:53]}  Be7 {[%clk 0:02:51]} 8. e3 {[%clk 0:02:52]}  O-O {[%clk 0:02:51]} 9. Be2 {[%clk 0:02:47]}  d5 {[%clk 0:02:47]} 10. Nbd2 {[%clk 0:02:40]}  Nc6 {[%clk 0:02:45]} 11. cxd5 {[%clk 0:02:36]}  Na5 {[%clk 0:02:39]} 12. Qd3 {[%clk 0:02:37]}  Bxd5 {[%clk 0:02:20]} 13. e4 {[%clk 0:02:35]}  Bb7 {[%clk 0:02:19]} 14. O-O {[%clk 0:02:32]}  Rc8 {[%clk 0:02:13]} 15. Ne5 {[%clk 0:02:18]}  Nc6 {[%clk 0:02:03]} 16. f4 {[%clk 0:02:09]}  Nb4 {[%clk 0:01:58]} 17. Qe3 {[%clk 0:01:45]}  Nc2 {[%clk 0:01:52]} 18. Qd3 {[%clk 0:01:45]}  Nxa1 {[%clk 0:01:51]} 19. Bxa1 {[%clk 0:01:46]}  Bb4 {[%clk 0:01:39]} 20. Nef3 {[%clk 0:01:29]}  Bxd2 {[%clk 0:01:22]} 21. Nxd2 {[%clk 0:01:29]}  Qc7 {[%clk 0:01:22]} 22. Bf3 {[%clk 0:01:18]}  Qc2 {[%clk 0:01:19]} 23. Qe3 {[%clk 0:01:18]}  Ba6 {[%clk 0:01:00]} 24. Re1 {[%clk 0:01:13]}  Qd3 {[%clk 0:00:58]} 25. Qf2 {[%clk 0:00:42]}  Rc2 {[%clk 0:00:54]} 26. Rd1 {[%clk 0:00:43]}  Rxa2 {[%clk 0:00:35]} 27. d5 {[%clk 0:00:37]}  exd5 {[%clk 0:00:16]} 28. Bxf6 {[%clk 0:00:37]}  gxf6 {[%clk 0:00:17]} 29. Qg3+ {[%clk 0:00:36]}  Kh8 {[%clk 0:00:17]} 30. Nf1 {[%clk 0:00:34]}  Qc3 {[%clk 0:00:13]} 31. exd5 {[%clk 0:00:33]}  Be2 {[%clk 0:00:09]} 32. Bxe2 {[%clk 0:00:31]}  Qc5+ {[%clk 0:00:07]} 33. Kh1 {[%clk 0:00:25]}  Rxe2 {[%clk 0:00:07]} 34. d6 {[%clk 0:00:21]}  Qf2 {[%clk 0:00:07]} 35. d7 {[%clk 0:00:18]}  Rd8 {[%clk 0:00:03]} 36. h4 {[%clk 0:00:08]}  Qxg3 {[%clk 0:00:02]} 37. Nxg3 {[%clk 0:00:09]}  Re7 {[%clk 0:00:02]} 38. Rd6 {[%clk 0:00:09]}  Rexd7 {[%clk 0:00:02]} 39. Rxf6 {[%clk 0:00:10]}  Kg7 {[%clk 0:00:03]} 40. Nh5+ {[%clk 0:00:10]}  Kf8 {[%clk 0:00:03]} 41. Rh6 {[%clk 0:00:10]}  Rd6 {[%clk 0:00:03]} 42. Rxh7 {[%clk 0:00:11]}  Kg8 {[%clk 0:00:04]} 43. Rg7+ {[%clk 0:00:11]}  Kf8 {[%clk 0:00:04]} 44. Rh7 {[%clk 0:00:09]}  a5 {[%clk 0:00:04]} 45. f5 {[%clk 0:00:09]}  Kg8 {[%clk 0:00:04]} 46. Rg7+ {[%clk 0:00:09]}  Kf8 {[%clk 0:00:05]} 47. Rh7 {[%clk 0:00:10]}  a4 {[%clk 0:00:05]} 48. f6 {[%clk 0:00:10]}  Ke8 {[%clk 0:00:06]} 49. Rg7 {[%clk 0:00:02]}  a3 {[%clk 0:00:06]} 50. Rg8+ {[%clk 0:00:02]}  Kd7 {[%clk 0:00:05]} 51. Rg3 {[%clk 0:00:03]}  Ra8 {[%clk 0:00:05]} 52. Re3 {[%clk 0:00:03]}  a2 {[%clk 0:00:05]} 53. Re7+ {[%clk 0:00:03]}  Kc6 {[%clk 0:00:06]} 54. Re1 {[%clk 0:00:04]}  a1=Q {[%clk 0:00:06]} 55. Rxa1 {[%clk 0:00:04]}  Rxa1+ {[%clk 0:00:06]} 56. Kh2 {[%clk 0:00:05]}  Ra5 {[%clk 0:00:07]} 57. Ng3 {[%clk 0:00:04]}  Rxf6 {[%clk 0:00:07]} 58. Ne2 {[%clk 0:00:04]}  Rh6 {[%clk 0:00:07]} 59. g3 {[%clk 0:00:04]}  Ra2 {[%clk 0:00:07]} 60. Kh3 {[%clk 0:00:05]}  Rxe2 {[%clk 0:00:08]} 61. Kg4 {[%clk 0:00:05]}  Ree6 {[%clk 0:00:08]} 62. h5 {[%clk 0:00:05]}  b5 {[%clk 0:00:08]} 63. Kh4 {[%clk 0:00:06]}  Rxh5+ {[%clk 0:00:09]} 64. Kxh5 {[%clk 0:00:06]}  Rg6 {[%clk 0:00:09]} 65. g4 {[%clk 0:00:04]}  b4 {[%clk 0:00:09]} 0-1


[Site "https://www.chess.com"]